[Event "CCT Julius Baer-D3 2024"]
[Site "Online"]
[Date "2024.09.27"]
[Round "2.2"]
[White "Sindarov, Javokhir"]
[Black "Kamsky, Gata"]
[Result "1/2-1/2"]
[ECO "B41"]
[WhiteElo "2677"]
[BlackElo "2609"]
[Annotator "TA"]
[PlyCount "120"]
[EventDate "2024.09.25"]
[EventType "swiss"]
[EventCountry "NET"]
[SourceTitle "playchess.com"]
[Source "ChessBase"]
[SourceQuality "1"]
[TimeControl "600+2"]

{[%evp 60,120,41,0,0,-35,0,0,0,0,0,-57,0,0,91,-182,-182,-454,-461,-461,-461,-450,-338,-344,-328,-348,-8,-8,-8,-8,-8,-337,-8,-8,-8,-8,-8,-8,-8,-8,-8,-8,-8,-8,-8,-8,0,0,7,7,7,0,8,8,8,8,8,8,8,8,8,8,8]} 1. e4 {[%emt 0:00:04]} c5 {[%emt 0:00:05]} 2. Nf3 {[%emt 0:00:01]} e6 {[%emt 0:00:02]} 3. d4 {[%emt 0:00:01]} cxd4 {[%emt 0:00:01]} 4. Nxd4 {[%emt 0:00:00]} a6 {[%emt 0:00:01]} 5. g3 {[%emt 0:00:19]} b5 {[%emt 0:00:07]} 6. Bg2 {[%emt 0:00:01] B41: Sicilian: Kan Variation: 5 c4.} Bb7 {[%emt 0:00:02]} 7. O-O {[%emt 0:00:01]} Nc6 $1 {[%emt 0:00:02][%mdl 4] is recently more successful than 7...Qc7.} 8. Re1 {[%emt 0:00:26]} Nxd4 {[%emt 0:00:04]} 9. Qxd4 {[%emt 0:00:00]} Ne7 {[%emt 0:00:03]} 10. Nc3 {[%emt 0:00:01]} Nc6 {[%emt 0:00:18]} 11. Qd1 {[%emt 0:00:01]} Bb4 {[%emt 0:00:28]} 12. Bd2 {[%emt 0:01:58]} O-O {[%emt 0:00:04]} 13. a3 {[%emt 0:00:03]} Be7 {[%emt 0:00:04]} 14. e5 $146 {[%emt 0:00:12]} ({Predecessor:} 14. Bf4 d6 15. Ne2 Rc8 16. c3 e5 17. Be3 Qc7 18. f4 exf4 19. Nxf4 Ne5 20. Qe2 {1-0 Wang,P (1888)-Bue,G (1640) Koge Xtracon op 2015 (9)}) 14... f6 {[%emt 0:01:01]} 15. exf6 {[%emt 0:00:09]} Bxf6 {[%emt 0:00:02]} 16. Bf4 {[%emt 0:00:04]} Bxc3 {[%emt 0:00:04]} 17. bxc3 {[%emt 0:00:00]} Na5 {[%emt 0:00:06]} 18. Bxb7 {[%emt 0:00:15]} Nxb7 {[%emt 0:00:03]} 19. Qd4 {[%emt 0:00:11]} Qc8 {[%emt 0:01:22]} 20. a4 {[%emt 0:00:27]} bxa4 {[%emt 0:01:15]} 21. Rxa4 {[%emt 0:00:27]} Nd8 {[%emt 0:00:03]} 22. Rd1 {[%emt 0:01:07]} Rf7 {[%emt 0:00:04]} 23. c4 {[%emt 0:00:34]} Nc6 {[%emt 0:00:05]} 24. Qe4 {[%emt 0:00:00]} a5 {[%emt 0:00:38]} 25. Ra3 {[%emt 0:00:01]} Ra7 {[%emt 0:00:55]} 26. Rb1 {[%emt 0:00:38]} Ra8 {[%emt 0:00:40]} 27. Rb5 {[%emt 0:00:34]} Qf8 {[%emt 0:00:29]} 28. Rd3 {[%emt 0:00:22]} a4 {[%emt 0:00:25]} 29. Bd6 {[%emt 0:00:01]} Qd8 {[%emt 0:00:06]} 30. Ba3 {[%emt 0:01:09]} Qf6 {[%emt 0:00:05]} 31. Qe3 {[%emt 0:00:14]} h6 {[%emt 0:00:08]} 32. h4 {[%emt 0:00:15]} Qg6 {[%emt 0:00:05]} 33. Qe2 {[%emt 0:00:02]} e5 {[%emt 0:00:11]} 34. c3 {[%emt 0:00:37]} Re8 {[%emt 0:00:04]} 35. Re3 {[%emt 0:00:28]} ({White should try} 35. h5 $11 Qf5 36. Rd2) 35... e4 {[%emt 0:00:12]} ({Better is} 35... Re6 $1 $15 36. Qd1 Kh8) 36. Kg2 {[%emt 0:00:06]} d6 {[%emt 0:00:26]} (36... Qe6 $11) 37. Rd5 $2 {[%emt 0:00:04][%mdl 8192]} (37. Rb6 $16 {and life is bright.} Rc7 38. h5) 37... Ref8 $19 {[%emt 0:00:04]} 38. Rxd6 $2 {[%emt 0:00:07]} (38. Bxd6 {was forced.} Rxf2+ 39. Qxf2 Rxf2+ 40. Kxf2) 38... Rxf2+ $19 {[%emt 0:00:01]} 39. Qxf2 {[%emt 0:00:05]} Rxf2+ {[%emt 0:00:02]} 40. Kxf2 {[%emt 0:00:02]} Qf5+ {[%emt 0:00:01]} 41. Kg2 {[%emt 0:00:09]} Ne5 {[%emt 0:00:11]} 42. Rd5 {[%emt 0:00:01] [#]} Ng4 $2 {[%emt 0:00:17]} (42... h5 $1 $19 {...Qf6 would now be deadly.} 43. Bc5 (43. Rd8+ Kh7) 43... Qf6) 43. Rxf5 $11 {[%emt 0:00:04]} Nxe3+ {[%emt 0:00:01]} 44. Kf2 {[%emt 0:00:01]} Nxf5 {[%emt 0:00:01]} 45. h5 $2 {[%emt 0:00:06][%mdl 8192]} (45. c5 $11 {and White stays safe.} Kf7 46. g4 Nxh4 47. Ke3) 45... Kf7 $2 {[%emt 0:00:05]} (45... e3+ $19 46. Kf3 e2 47. Kxe2 Nxg3+ 48. Kd2 Nxh5) 46. g4 $11 {[%emt 0:00:00]} Ne7 {[%emt 0:00:05]} 47. Ke3 {[%emt 0:00:01]} Nc6 {[%emt 0:00:02]} 48. Kxe4 {[%emt 0:00:01]} Ke6 {[%emt 0:00:01]} 49. c5 {[%emt 0:00:04]} Ne5 {[%emt 0:00:06]} 50. c6 {[%emt 0:00:01]} Nxc6 {[%emt 0:00:01]} 51. Bf8 {[%emt 0:00:03]} Ne5 {[%emt 0:00:05]} 52. Bxg7 {[%emt 0:00:03]} Nxg4 {[%emt 0:00:01]} 53. c4 {[%emt 0:00:02]} Nf6+ {[%emt 0:00:16]} 54. Kd3 {[%emt 0:00:02]} Nxh5 {[%emt 0:00:02]} 55. Bxh6 {[%emt 0:00:00]} Kd6 {[%emt 0:00:04]} 56. Kc3 {[%emt 0:00:01]} Kc6 {[%emt 0:00:05]} 57. Kb4 $1 {[%emt 0:00:02]} Nf6 {[%emt 0:00:01]} 58. Kxa4 {[%emt 0:00:01]} Nd7 {[%emt 0:00:01]} 59. Be3 {[%emt 0:00:01]} Ne5 {[%emt 0:00:02]} 60. Kb4 {[%emt 0:00:01]} Nxc4 {[%emt 0:00:01]} 1/2-1/2

[Event "CCT Julius Baer-D3 2024"]
[Site "Online"]
[Date "2024.09.27"]
[Round "2.2"]
[White "Yoo, Christopher Woojin"]
[Black "Niemann, Hans Moke"]
[Result "1/2-1/2"]
[ECO "C67"]
[WhiteElo "2603"]
[BlackElo "2733"]
[Annotator "TA"]
[PlyCount "147"]
[EventDate "2024.09.25"]
[EventType "swiss"]
[EventCountry "NET"]
[SourceTitle "playchess.com"]
[Source "ChessBase"]
[SourceQuality "1"]
[TimeControl "600+2"]

{[%evp 45,147,14,25,8,12,6,84,0,0,-47,0,0,20,-77,-72,-76,-40,-125,-135,-137,-135,-121,-93,-133,-104,-93,-83,-102,-99,-109,-105,-110,-104,-138,-131,-153,-162,-169,-114,-121,-125,-115,-122,-116,-75,-96,-96,-109,-104,-116,-114,-117,-117,-106,-109,-116,-96,-96,-96,-96,-96,-96,-96,-96,-96,-96,-96,-96,-96,-96,-96,-96,-96,-96,-96,-96,-96,-96,-96,-96,-96,-96,-96,-96,-16,-96,-96,-96,-96,-96,-96,-96,-96,-96,-96,-96,-96,-96,-96,-96,-96,-96,-96,-96]} 1. e4 {[%emt 0:00:02]} e5 {[%emt 0:00:05]} 2. Nf3 {[%emt 0:00:02]} Nc6 {[%emt 0:00:02]} 3. Bb5 {[%emt 0:00:11]} Nf6 {[%emt 0:00:01]} 4. O-O {[%emt 0:00:04]} Nxe4 {[%emt 0:00:02]} 5. Re1 {[%emt 0:00:07]} Nd6 {[%emt 0:00:01]} 6. Nxe5 {[%emt 0:00:01]} Be7 {[%emt 0:00:00]} 7. Bf1 {[%emt 0:00:02]} Nxe5 {[%emt 0:00:01]} 8. Rxe5 {[%emt 0:00:00]} O-O {[%emt 0:00:01]} 9. d4 {[%emt 0:00:08]} Bf6 {[%emt 0:00:01] C67: Ruy Lopez: Berlin Defence: 4 0-0 Nxe4.} 10. Bd3 {[%emt 0:00:00]} Bxe5 {[%emt 0:00:07]} 11. dxe5 {[%emt 0:00:03]} Ne8 {[%emt 0:00:03]} 12. Nc3 {[%emt 0:00:00]} d6 {[%emt 0:00:02]} 13. Qh5 {[%emt 0:00:02]} g6 {[%emt 0:00:05]} 14. Qh6 {[%emt 0:00:01]} Qe7 {[%emt 0:00:01]} 15. exd6 {[%emt 0:00:20]} Nxd6 {[%emt 0:00:04]} 16. Nd5 {[%emt 0:00:00]} Qe5 {[%emt 0:00:02]} 17. c4 {[%emt 0:00:14]} Be6 $146 {[%emt 0:01:23]} ({Predecessor:} 17... Nf5 18. Qf4 Qxf4 19. Bxf4 c6 20. Nc7 Rb8 21. Nd5 Ra8 22. Nc7 Rb8 23. Nd5 {½-½ Sanal,V (2581)-Malakhov,V (2669) SRB-chT Premier 2020 (9.4)}) 18. Bf4 {[%emt 0:02:15]} Qg7 {[%emt 0:00:10]} 19. Qxg7+ {[%emt 0:00:24]} Kxg7 {[%emt 0:00:01]} 20. Be5+ {[%emt 0:00:14]} Kh6 {[%emt 0:00:04]} 21. Nxc7 {[%emt 0:00:12]} Rad8 {[%emt 0:00:05]} 22. c5 {[%emt 0:00:25]} Nf5 {[%emt 0:00:08]} 23. Nxe6 {[%emt 0:00:02]} (23. Be4 $14) 23... fxe6 $11 {[%emt 0:00:01]} 24. Bc4 {[%emt 0:00:01]} Nd4 {[%emt 0:00:08]} 25. Bd6 {[%emt 0:01:39]} Rf5 {[%emt 0:00:03]} (25... Rxd6 $11 {remains equal.} 26. cxd6 Rd8) 26. Bd3 {[%emt 0:00:25]} (26. g4 $16 Rg5 27. h3) 26... Rf7 $11 {[%emt 0:00:19]} 27. Be4 {[%emt 0:00:05]} (27. Re1 $11) 27... Nf5 {[%emt 0:00:08]} (27... b6 $15) 28. Be5 $11 {[%emt 0:00:02]} Rfd7 {[%emt 0:00:03]} 29. Bf3 {[%emt 0:00:03] [#]} (29. Kf1 $11 {keeps the balance.}) 29... Nd4 $1 $17 {[%emt 0:00:03]} 30. Bg4 {[%emt 0:00:03]} Rd5 {[%emt 0:00:26]} 31. Bf4+ {[%emt 0:00:27]} (31. f4 $1 $15) 31... Kg7 $17 {[%emt 0:00:39]} 32. b4 {[%emt 0:00:22]} h5 {[%emt 0:00:22]} 33. Bd1 {[%emt 0:00:03]} Nc6 {[%emt 0:00:19]} 34. Bb3 {[%emt 0:00:03]} Rd4 {[%emt 0:00:04]} 35. Bg5 {[%emt 0:00:06]} R8d7 {[%emt 0:00:03]} 36. a3 {[%emt 0:00:08]} Rd3 {[%emt 0:00:09]} 37. Ba4 {[%emt 0:00:03]} R7d5 {[%emt 0:00:05]} 38. h4 {[%emt 0:00:01]} Nd4 {[%emt 0:00:03]} 39. Kh2 {[%emt 0:00:15]} Kf7 {[%emt 0:00:10]} 40. f3 {[%emt 0:00:38]} a6 {[%emt 0:00:04]} 41. Ra2 {[%emt 0:00:06]} Nb5 {[%emt 0:00:05]} ({Black should play} 41... Re5 $19 42. Bc2 Nxc2 43. Rxc2 Rxa3) 42. Bxb5 $17 {[%emt 0:00:04]} axb5 {[%emt 0:00:00]} 43. a4 {[%emt 0:00:00]} bxa4 {[%emt 0:00:03]} 44. Rxa4 {[%emt 0:00:00]} e5 {[%emt 0:00:47]} 45. Ra8 {[%emt 0:00:18]} Rd7 {[%emt 0:00:08]} 46. Rc8 {[%emt 0:00:17]} Rb3 {[%emt 0:00:05]} 47. c6 {[%emt 0:00:01]} bxc6 {[%emt 0:00:01]} 48. Rxc6 {[%emt 0:00:00]} Rxb4 {[%emt 0:00:01]} 49. Rf6+ {[%emt 0:00:01]} Kg7 {[%emt 0:00:02]} 50. Re6 {[%emt 0:00:00]} Rb5 {[%emt 0:00:21]} 51. Bf6+ {[%emt 0:00:03]} Kf7 {[%emt 0:00:02]} 52. Rxe5 {[%emt 0:00:00]} Rxe5 {[%emt 0:00:09]} 53. Bxe5 {[%emt 0:00:00]} Ke6 {[%emt 0:00:00]} 54. Bf4 {[%emt 0:00:01]} Kf5 {[%emt 0:00:03]} 55. Bg5 {[%emt 0:00:02]} Ra7 {[%emt 0:00:01]} 56. Kh3 {[%emt 0:00:03]} Ra3 {[%emt 0:00:03]} 57. Kg3 {[%emt 0:00:01]} Ke5 {[%emt 0:00:07]} 58. Kf2 {[%emt 0:00:03]} Ra2+ {[%emt 0:00:02]} 59. Kf1 {[%emt 0:00:07]} Kd4 {[%emt 0:00:00]} 60. Bh6 {[%emt 0:00:02]} Kd3 {[%emt 0:00:01]} 61. Bg5 {[%emt 0:00:02]} Ra4 {[%emt 0:00:12]} 62. Kf2 {[%emt 0:00:01]} Rc4 {[%emt 0:00:01]} 63. Kf1 {[%emt 0:00:02]} Rc6 {[%emt 0:00:01]} 64. Kf2 {[%emt 0:00:01]} Kc2 {[%emt 0:00:00]} (64... Rc2+ $17 65. Kf1 Ra2) 65. Bh6 {[%emt 0:00:06]} (65. Ke3 $1 $11) 65... Kd1 {[%emt 0:00:03]} 66. Bg5 {[%emt 0:00:00]} Rc2+ {[%emt 0:00:03]} 67. Kf1 {[%emt 0:00:01]} Re2 {[%emt 0:00:01]} 68. Bh6 {[%emt 0:00:01]} Re1+ {[%emt 0:00:05]} 69. Kf2 {[%emt 0:00:01]} Re6 {[%emt 0:00:00]} 70. Bg5 {[%emt 0:00:01]} Kc2 {[%emt 0:00:00]} 71. Bh6 {[%emt 0:00:02]} Kd3 {[%emt 0:00:00]} 72. Bg5 {[%emt 0:00:02]} Re2+ {[%emt 0:00:01]} 73. Kf1 {[%emt 0:00:00]} Ra2 {[%emt 0:00:02]} 74. Bh6 {[%emt 0:00:01]} 1/2-1/2

[Event "CCT Julius Baer-D3 2024"]
[Site "Online"]
[Date "2024.09.27"]
[Round "2.2"]
[White "Moussard, Jules"]
[Black "Svane, Rasmus"]
[Result "1-0"]
[ECO "C54"]
[WhiteElo "2600"]
[BlackElo "2629"]
[Annotator "TA"]
[PlyCount "77"]
[EventDate "2024.09.25"]
[EventType "swiss"]
[EventCountry "NET"]
[SourceTitle "playchess.com"]
[Source "ChessBase"]
[SourceQuality "1"]
[TimeControl "600+2"]

{[%evp 13,77,14,16,5,18,-2,-8,1,0,-10,0,0,-3,-3,0,-55,13,0,-7,-3,31,33,52,44,37,-41,-25,-30,31,29,31,4,110,91,101,105,106,97,292,283,478,470,497,485,488,383,879,841,1104,1101,1104,1103,1108,1045,1136,1102,1328,1038,1538,1210,1737,1772,1722,1714,1741,1800]} 1. e4 {[%emt 0:00:02]} e5 {[%emt 0:00:03]} 2. Nf3 {[%emt 0:00:02]} Nc6 {[%emt 0:00:01]} 3. Bc4 {[%emt 0:00:01]} Bc5 {[%emt 0:00:03]} 4. c3 {[%emt 0:00:01]} Nf6 {[%emt 0:00:02]} 5. d3 {[%emt 0:00:01]} d6 {[%emt 0:00:01]} 6. Bg5 {[%emt 0:00:01]} h6 {[%emt 0:00:24]} 7. Bh4 {[%emt 0:00:01]} a6 {[%emt 0:00:43]} 8. a4 {[%emt 0:00:05]} Ba7 {[%emt 0:00:04]} 9. Nbd2 {[%emt 0:00:07]} Qe7 {[%emt 0:00:07]} 10. O-O {[%emt 0:00:08] The position is equal.} g5 {[%emt 0:00:56]} 11. Bg3 {[%emt 0:00:01]} Nd7 {[%emt 0:00:01]} 12. b4 {[%emt 0:00:02][%cal Bb2b4,Bb4b5,Bb5b6][%mdl 32]} Nf8 {[%emt 0:00:04]} 13. b5 {[%emt 0:00:01]} Na5 {[%emt 0:00:04]} 14. Bd5 {[%emt 0:00:01]} ({White should try} 14. bxa6 $11 bxa6 15. Bd5) 14... c6 {[%emt 0:00:14]} ({Better is} 14... Ng6 $15 15. h3 c6) 15. Ba2 {[%emt 0:00:07]} (15. bxc6 {feels hotter.} bxc6 16. Nc4 cxd5 17. Nxd6+ Qxd6 18. Bxe5 Qg6 19. Bxh8 dxe4 20. Ne5) 15... Ng6 {[%emt 0:00:06] ...g4 is the strong threat.} 16. Qb1 {[%emt 0:00:11]} h5 {[%emt 0:00:35]} 17. b6 {[%emt 0:00:07]} Bb8 {[%emt 0:00:12]} 18. Qb4 $36 {[%emt 0:00:01][%mdl 2048] White has good play.} g4 {[%emt 0:00:32]} 19. Ne1 {[%emt 0:00:07]} (19. Qxa5 gxf3 20. Nxf3 Bg4 $17 (20... h4 21. d4 $15)) (19. Nh4 $14 Nxh4 20. Bxh4 (20. Qxa5 Ng6 $15) 20... Qxh4 21. Qxa5) 19... h4 $15 {[%emt 0:00:03][%cal Oe7g5]} 20. Qxa5 {[%emt 0:00:05][%cal Od3d4]} f5 {[%emt 0:01:26]} (20... Qg5 $11 21. Rd1 (21. f4 Qh6 $15) 21... Qh5) 21. exf5 $14 {[%emt 0:02:00]} Bxf5 {[%emt 0:00:04][%cal Od6d5]} 22. d4 {[%emt 0:00:01][%cal Oa1d1]} (22. Qb4 {simplifies} d5 23. Qxe7+ Nxe7 24. Bb1) 22... hxg3 {[%emt 0:00:21]} (22... Qg5 $11 23. dxe5 (23. f4 Qh6 $15) 23... d5 (23... hxg3 24. exd6 gxh2+ 25. Kh1 $16)) 23. fxg3 $16 {[%emt 0:00:03]} Qg5 {[%emt 0:00:21] [#] aiming for ...Qe3+.} 24. Rf2 $1 {[%emt 0:01:03] White is more active.} d5 {[%emt 0:00:36] [#]} 25. Bxd5 $1 {[%emt 0:00:08][%mdl 512]} cxd5 {[%emt 0:00:04] A mistake that costs the game.} (25... Ne7 $16 26. Ba2 Qh5) (25... Qh5 26. Nf1) 26. Qxd5 $18 {[%emt 0:00:01]} Ne7 $2 {[%emt 0:01:05]} ({Of course not} 26... Qh5 27. h4 gxh3 28. Qxb7 hxg2 29. Qxg2 (29. Qc6+ Ke7 $15)) (26... Qe3 {was worth a try.}) 27. Qxb7 {[%emt 0:00:10]} Qh6 {[%emt 0:00:43]} 28. Nf1 {[%emt 0:00:52]} ({Don't play} 28. Qxa8 Qxh2+ 29. Kf1 O-O $18) 28... O-O {[%emt 0:01:19]} 29. Qxa8 {[%emt 0:00:18]} exd4 $2 {[%emt 0:00:08]} (29... Qxb6 30. a5 Qa7 31. Qxa7 Bxa7) 30. Qxa6 {[%emt 0:00:07] White is clearly winning.} Be5 {[%emt 0:00:10]} 31. cxd4 {[%emt 0:00:05][%cal Bc3d4,Bd4d5][%mdl 32]} Bg7 {[%emt 0:00:01]} 32. Qc4+ {[%emt 0:00:15]} Kh7 {[%emt 0:00:08]} 33. a5 {[%emt 0:00:21]} Qd6 {[%emt 0:00:02]} 34. Rd1 {[%emt 0:00:05]} Nc6 {[%emt 0:00:05]} 35. Qc5 {[%emt 0:00:02]} Qd7 {[%emt 0:00:08]} 36. d5 {[%emt 0:00:31]} Ne5 {[%emt 0:00:01]} 37. Ne3 {[%emt 0:00:01]} Rc8 {[%emt 0:00:02]} 38. Qb4 {[%emt 0:00:07]} Bg6 {[%emt 0:00:02]} 39. b7 {[%emt 0:00:03] Weighted Error Value: White=0.22 (precise) /Black=0.41.  Loses game:     	---       	Black=1      Mistake:       	White=2     	Black=5      Inaccurate:     	White=1     	Black=2      OK:         	White=7     	Black=9      Best:        	White=3     	Black=1      Strong:       	White=1     	---        Brilliant:      	White=1     	---} 1-0

[Event "CCT Julius Baer-D3 2024"]
[Site "Online"]
[Date "2024.09.27"]
[Round "2.2"]
[White "Bharath Subramaniyam H"]
[Black "Navara, David"]
[Result "0-1"]
[ECO "C54"]
[WhiteElo "2561"]
[BlackElo "2681"]
[Annotator "TA"]
[PlyCount "106"]
[EventDate "2024.09.25"]
[EventType "swiss"]
[EventCountry "NET"]
[SourceTitle "playchess.com"]
[Source "ChessBase"]
[SourceQuality "1"]
[TimeControl "600+2"]

{[%evp 28,106,26,22,27,12,32,6,7,24,25,0,0,0,0,0,0,0,0,0,0,0,0,0,0,0,0,-15,0,-27,-18,-45,-42,-35,-31,-27,-27,-51,-52,-44,-39,-65,-65,-136,-138,-204,-181,-202,-191,-157,-131,-140,-130,-314,-318,-329,-235,-438,-472,-482,-447,-829,-898,-979,-868,-847,-750,-823,-776,-1403,-1103,-1369,-1005,-1312,-1026,-29967,-29969,-29972,-29972,-29963,-29966]} 1. e4 {[%emt 0:00:03]} e5 {[%emt 0:00:04]} 2. Nf3 {[%emt 0:00:01]} Nc6 {[%emt 0:00:00]} 3. Bc4 {[%emt 0:00:02]} Bc5 {[%emt 0:00:02]} 4. d3 {[%emt 0:00:02]} Nf6 {[%emt 0:00:01]} 5. O-O {[%emt 0:00:02]} O-O {[%emt 0:00:10]} 6. h3 {[%emt 0:00:02]} h6 {[%emt 0:00:04]} 7. Re1 {[%emt 0:00:09]} d6 {[%emt 0:00:01]} 8. c3 {[%emt 0:00:01]} a5 {[%emt 0:00:01] C54: Giuoco Piano: 4 c3 Nf6, main lines with 5 d4 and 5 d3.} 9. Bb3 {[%emt 0:00:07]} b5 {[%emt 0:00:06]} 10. d4 {[%emt 0:00:25]} Bb6 {[%emt 0:00:05]} 11. Be3 {[%emt 0:00:02]} a4 {[%emt 0:00:36]} 12. Bc2 {[%emt 0:00:06]} exd4 {[%emt 0:00:01]} 13. Nxd4 $146 {[%emt 0:00:13]} ({Predecessor:} 13. cxd4 Nb4 14. Nc3 Nxc2 15. Qxc2 Ba5 16. Bd2 Rb8 17. e5 dxe5 18. dxe5 Bxc3 19. Qxc3 {1-0 Firouzja,A (2749)-Ding,L (2791) Skilling op Prelim rapid 2020 (11)}) 13... Nxd4 {[%emt 0:00:04]} 14. cxd4 {[%emt 0:00:00]} Bb7 {[%emt 0:00:45]} 15. Nc3 {[%emt 0:00:05]} Ba5 {[%emt 0:00:44]} 16. Bd2 {[%emt 0:00:05]} Re8 {[%emt 0:00:13]} 17. Nxb5 {[%emt 0:00:43]} Nxe4 {[%emt 0:01:04]} 18. Bxa5 {[%emt 0:01:34]} Rxa5 {[%emt 0:00:00]} 19. Bxe4 {[%emt 0:01:17]} Bxe4 {[%emt 0:00:07]} 20. Nc3 {[%emt 0:00:03]} Bb7 {[%emt 0:00:13]} 21. Qd2 {[%emt 0:00:20]} a3 {[%emt 0:00:34]} ({Don't play} 21... Rxe1+ 22. Qxe1 Qg5 23. g3 $17) 22. b3 {[%emt 0:00:09]} Rg5 {[%emt 0:00:26]} 23. d5 {[%emt 0:00:02]} Rge5 {[%emt 0:00:34]} 24. Rxe5 {[%emt 0:00:09]} Rxe5 {[%emt 0:00:00]} 25. Rd1 {[%emt 0:00:48]} Bc8 {[%emt 0:01:05]} 26. Kh2 {[%emt 0:00:18]} Qf6 {[%emt 0:00:30]} 27. Re1 {[%emt 0:00:21]} Bd7 {[%emt 0:00:19]} 28. Rxe5 {[%emt 0:00:05]} Qxe5+ {[%emt 0:00:00]} 29. Kg1 {[%emt 0:00:03]} g5 {[%emt 0:00:43]} 30. Qe3 {[%emt 0:00:27]} Qxe3 {[%emt 0:00:11]} 31. fxe3 {[%emt 0:00:02]} Kg7 {[%emt 0:00:01]} 32. Nb1 {[%emt 0:00:35]} Kf6 {[%emt 0:00:01]} 33. Nxa3 {[%emt 0:00:02]} Ke5 {[%emt 0:00:01]} 34. Kf2 {[%emt 0:00:19]} Kxd5 {[%emt 0:00:02]} 35. Nb1 {[%emt 0:00:13]} ({Better is} 35. Nc2 $15) 35... Ke4 $17 {[%emt 0:00:34]} 36. Ke2 {[%emt 0:00:28]} (36. Nc3+ $17 {was called for.} Kd3 37. Nd5) 36... Bb5+ $19 {[%emt 0:00:02]} 37. Kd2 {[%emt 0:00:01] [#]} Bf1 $1 {[%emt 0:00:00]} 38. Nc3+ {[%emt 0:00:07]} Ke5 {[%emt 0:00:01]} 39. g3 {[%emt 0:00:09]} Bxh3 {[%emt 0:00:02]} 40. a4 $2 {[%emt 0:00:00] [#]} (40. b4 $17 {was the only chance.}) 40... c5 $1 $19 {[%emt 0:00:26]} 41. a5 {[%emt 0:00:48]} Bf1 {[%emt 0:00:06]} 42. Na4 $2 {[%emt 0:00:24]} (42. e4) 42... h5 $19 {[%emt 0:00:24]} 43. Nb6 {[%emt 0:00:11]} Bb5 {[%emt 0:00:02]} 44. Ke1 {[%emt 0:00:08]} (44. Nc4+ $142 Kd5 45. Nb6+ Kc6 46. e4) 44... d5 $19 {[%emt 0:00:11]} 45. Kf2 {[%emt 0:00:09]} Kd6 {[%emt 0:00:09]} 46. Nc8+ {[%emt 0:00:03]} Kd7 {[%emt 0:00:02]} 47. Nb6+ {[%emt 0:00:00]} Ke6 {[%emt 0:00:11]} 48. Na8 {[%emt 0:00:06]} Kd6 {[%emt 0:00:02]} 49. Nb6 {[%emt 0:00:01]} f5 {[%emt 0:00:05]} 50. Nc8+ {[%emt 0:00:02]} Ke6 {[%emt 0:00:02]} 51. Na7 {[%emt 0:00:04]} Bd7 {[%emt 0:00:02]} 52. a6 {[%emt 0:00:03]} Kd6 {[%emt 0:00:02]} 53. Ke2 {[%emt 0:00:03]} Kc7 {[%emt 0:00:02]} 0-1

[Event "CCT Julius Baer-D3 2024"]
[Site "Online"]
[Date "2024.09.27"]
[Round "2.2"]
[White "Makarian, Rudik"]
[Black "Theodorou, Nikolas"]
[Result "1/2-1/2"]
[ECO "E16"]
[WhiteElo "2550"]
[BlackElo "2619"]
[Annotator "TA"]
[PlyCount "59"]
[EventDate "2024.09.25"]
[EventType "swiss"]
[EventCountry "NET"]
[SourceTitle "playchess.com"]
[Source "ChessBase"]
[SourceQuality "1"]
[TimeControl "600+2"]

{[%evp 15,59,42,39,25,31,23,19,23,58,51,65,47,79,35,27,38,50,49,53,51,53,52,52,26,24,12,22,11,14,22,0,0,0,6,7,0,16,0,0,0,0,-29,-19,-33,0,0]} 1. d4 {[%emt 0:00:02]} Nf6 {[%emt 0:00:03]} 2. c4 {[%emt 0:00:01]} e6 {[%emt 0:00:02]} 3. Nf3 {[%emt 0:00:01]} Bb4+ {[%emt 0:00:03]} 4. Bd2 {[%emt 0:00:01]} Qe7 {[%emt 0:00:02]} 5. g3 {[%emt 0:00:02]} Bxd2+ {[%emt 0:00:22]} 6. Qxd2 {[%emt 0:00:01]} b6 {[%emt 0:00:01]} 7. Bg2 {[%emt 0:00:02]} Bb7 {[%emt 0:00:00]} 8. O-O {[%emt 0:00:01]} O-O {[%emt 0:00:05]} 9. Rd1 {[%emt 0:00:02]} d6 {[%emt 0:00:11]} 10. Qd3 {[%emt 0:00:11]} Nbd7 {[%emt 0:00:11][%cal Bb8d7,Bd7c5,Bc5e6][%mdl 32]} 11. Nc3 {[%emt 0:00:02]} Rfe8 {[%emt 0:00:00]} 12. e4 {[%emt 0:00:01]} e5 {[%emt 0:00:12]} 13. Re1 {[%emt 0:00:15]} c5 {[%emt 0:00:16]} 14. dxc5 {[%emt 0:00:38]} Nxc5 {[%emt 0:00:05]} 15. Qc2 {[%emt 0:00:04]} Rac8 {[%emt 0:00:01][%cal Ob6b5]} 16. Rad1 {[%emt 0:00:09]} g6 {[%emt 0:00:17]} 17. Bh3 {[%emt 0:00:33]} Rcd8 {[%emt 0:00:10]} 18. b4 {[%emt 0:00:06]} Ne6 {[%emt 0:00:02]} 19. Nd5 {[%emt 0:00:03]} Nxd5 {[%emt 0:00:04]} 20. cxd5 {[%emt 0:00:03]} Ng7 {[%emt 0:00:10]} 21. Re3 {[%emt 0:00:56]} Bc8 {[%emt 0:00:15]} 22. Bxc8 {[%emt 0:00:18]} Rxc8 {[%emt 0:00:00]} 23. Rc3 {[%emt 0:00:52]} Rxc3 {[%emt 0:00:03]} 24. Qxc3 {[%emt 0:00:00]} f5 {[%emt 0:00:00]} 25. Nd2 {[%emt 0:00:03]} Rf8 {[%emt 0:00:13]} 26. Kg2 {[%emt 0:00:54]} Nh5 {[%emt 0:00:48]} 27. exf5 {[%emt 0:01:06]} gxf5 {[%emt 0:00:00]} 28. Nf3 {[%emt 0:00:15]} Qg7 {[%emt 0:00:34]} 29. h3 {[%emt 0:00:15]} Nf6 {[%emt 0:00:26]} 30. Nh4 {[%emt 0:00:16] Weighted Error Value: White=0.08 (flawless) /Black=0.07 (flawless) .  Inaccurate:     	White=3     	Black=3      OK:         	White=11    	Black=9} 1/2-1/2